bitfinex/quotes_SOLUSD_20241123
["timestamp","ask_amount","ask_price","bid_price","bid_amount"]
[1732350644393,8.14875393,258.48,258.4,16.5396]
[1732350645413,8.14875393,258.46,258.4,16.5396]
[1732350646014,8.14875393,258.42,258.39,200.0]
[1732350647215,8.14875393,258.4,258.39,200.0]
[1732350648898,31.92563793,258.4,258.39,200.0]
[1732350651011,54.42563793,258.4,258.39,200.0]
[1732350651218,48.776884,258.4,258.39,141.65040535]
[1732350651418,56.92563793,258.4,258.39,141.65040535]
[1732350651713,56.92563793,258.4,258.39,89.20233507]
[1732350652423,54.42563793,258.4,258.39,89.20233507]
[1732350652667,51.92563793,258.4,258.39,89.20233507]
[1732350653912,54.42563793,258.4,258.39,89.20233507]
[1732350654106,51.92563793,258.4,258.39,89.20233507]
[1732350654899,54.42563793,258.4,258.39,89.20233507]
[1732350655209,51.92563793,258.4,258.39,89.20233507]
[1732350655412,8.14875393,258.4,258.39,89.20233507]
[1732350656499,31.92563793,258.4,258.39,89.20233507]
[1732350660113,54.42563793,258.4,258.39,89.20233507]
[1732350661506,56.92563793,258.4,258.39,89.20233507]
[1732350661713,56.92563793,258.4,258.39,30.85274042]
[1732350662301,2.5,258.31,258.18,16.4182]
[1732350662521,8.14875393,258.19,258.13,6.0049]
[1732350662699,8.14875393,258.19,258.12,16.4182]
[1732350663117,8.14875393,258.21,258.12,24.56695393]
[1732350663324,8.14875393,258.23,258.14,8.14875393]
[1732350664020,8.14875393,258.25,258.16,8.14875393]
[1732350664413,8.14875393,258.25,258.12,16.4182]
[1732350664414,8.14875393,258.27,258.18,8.14875393]
[1732350664911,8.94,258.4,258.22,8.14875393]
[1732350665119,8.14875393,258.31,258.22,8.14875393]
[1732350665424,8.14875393,258.31,258.23,16.4182]
[1732350665611,6.44,258.4,258.23,16.4182]
[1732350665815,8.14875393,258.36,258.28,8.14875393]
[1732350666018,8.14875393,258.34,258.26,8.14875393]
[1732350666331,8.14875393,258.36,258.26,8.14875393]
[1732350666709,8.14875393,258.34,258.26,8.14875393]
[1732350666912,8.14875393,258.44,258.23,16.4182]
[1732350666913,8.14875393,258.31,258.23,16.4182]
[1732350667708,8.14875393,258.33,258.23,16.4182]
[1732350668613,8.14875393,258.29,258.23,16.4182]
[1732350668814,8.14875393,258.27,258.23,16.4182]
[1732350670629,8.14875393,258.25,258.23,16.4182]
[1732350671333,5.0,258.31,258.24,8.14875393]
[1732350671717,5.0,258.31,258.3,8.14875393]
[1732350672726,5.0,258.31,258.29,13.03373854]
[1732350674009,5.0,258.31,258.26,6.0049]
[1732350674010,6.44,258.48,258.3,26.06747708]
[1732350674209,13.03373854,258.46,258.37,13.03373854]
[1732350674826,221.370919,258.5,258.39,13.03373854]
[1732350675028,13.03373854,258.46,258.37,13.03373854]
[1732350675236,13.03373854,258.44,258.35,13.03373854]
[1732350676105,221.370919,258.5,258.33,13.03373854]
[1732350676106,13.03373854,258.42,258.33,13.03373854]
[1732350676326,13.03373854,258.44,258.35,13.03373854]
[1732350676936,13.03373854,258.46,258.37,13.03373854]
[1732350677441,13.03373854,258.49,258.39,13.03373854]
[1732350678637,221.370919,258.5,258.45,13.03373854]
[1732350680045,221.370919,258.5,258.47,13.03373854]
[1732350682143,221.370919,258.5,258.48,23.776884]
[1732350683144,221.370919,258.5,258.45,13.03373854]
[1732350683350,221.370919,258.5,258.43,13.03373854]
[1732350683548,221.370919,258.5,258.45,13.03373854]
[1732350684743,221.370919,258.5,258.47,13.03373854]
[1732350684947,221.370919,258.5,258.45,13.03373854]
[1732350686327,221.370919,258.5,258.47,13.03373854]
[1732350686726,221.370919,258.5,258.49,13.03373854]
[1732350688839,221.370919,258.5,258.49,36.81062254]
[1732350689435,221.370919,258.5,258.47,13.03373854]
[1732350691144,221.370919,258.5,258.45,13.03373854]
[1732350692454,221.370919,258.5,258.43,13.03373854]
[1732350692628,13.03373854,258.48,258.39,13.03373854]
[1732350693032,13.03373854,258.46,258.38,16.4182]
[1732350693230,13.03373854,258.48,258.39,13.03373854]
[1732350693446,221.370919,258.5,258.41,13.03373854]
[1732350693935,221.370919,258.5,258.43,13.03373854]
[1732350694751,221.370919,258.5,258.43,8.13757289]
[1732350695558,221.370919,258.5,258.48,8.13757289]
[1732350695728,221.370919,258.5,258.49,15.0845]
[1732350698647,221.370919,258.5,258.46,8.13757289]
[1732350699030,221.370919,258.5,258.48,8.13757289]
[1732350700058,221.370919,258.5,258.49,23.776884]
[1732350701431,221.370919,258.5,258.49,31.91445689]
[1732350704153,216.370919,258.5,258.49,31.91445689]
[1732350707340,216.370919,258.5,258.49,23.776884]
[1732350707540,216.370919,258.5,258.47,8.13757289]
[1732350707541,216.370919,258.5,258.48,23.776884]
[1732350707859,216.370919,258.5,258.47,8.13757289]
[1732350708034,216.370919,258.5,258.45,8.13757289]
[1732350708933,216.370919,258.5,258.47,8.13757289]
[1732350709338,216.370919,258.5,258.49,8.13757289]
[1732350710065,216.370919,258.5,258.49,31.91445689]
[1732350714964,215.403819,258.5,258.49,31.91445689]
[1732350715559,215.403819,258.5,258.47,8.13757289]
[1732350716644,215.403819,258.5,258.44,23.776884]
[1732350716844,215.403819,258.5,258.49,8.13757289]
[1732350720183,215.403819,258.5,258.43,15.0845]
[1732350720365,215.403819,258.5,258.45,8.13757289]
[1732350721969,215.403819,258.5,258.48,8.13757289]
[1732350722148,215.403819,258.5,258.49,23.776884]
[1732350725668,215.403819,258.5,258.49,335.776884]
[1732350730274,215.403819,258.5,258.46,8.13757289]
[1732350730777,215.403819,258.5,258.41,20.88284315]
[1732350730778,215.403819,258.5,258.44,8.13757289]
[1732350733177,215.403819,258.5,258.46,8.13757289]
[1732350733361,215.403819,258.5,258.46,320.13757289]
[1732350733863,215.403819,258.5,258.46,312.0]
[1732350734060,215.403819,258.5,258.45,23.776884]
[1732350735461,215.403819,258.5,258.44,8.13757289]
[1732350735778,8.13757289,258.49,258.41,20.88284315]
[1732350736084,215.403819,258.5,258.42,8.13757289]
[1732350736372,8.13757289,258.49,258.4,8.13757289]
[1732350738857,8.13757289,258.43,258.36,8.13757289]
[1732350739379,8.13757289,258.41,258.32,8.13757289]
[1732350739563,8.13757289,258.39,258.3,18.17263411]
[1732350739756,8.13757289,258.39,258.3,10.03506122]
[1732350739955,8.13757289,258.41,258.32,8.13757289]
[1732350740567,8.13757289,258.39,258.32,8.13757289]
[1732350740776,8.13757289,258.39,258.3,18.17263411]
[1732350741080,8.13757289,258.37,258.3,18.17263411]
[1732350741271,8.13757289,258.37,258.3,4.94401807]
[1732350741460,8.13757289,258.37,258.28,8.13757289]
[1732350742164,8.13757289,258.41,258.32,8.13757289]
[1732350742955,8.13757289,258.39,258.32,8.13757289]
[1732350743775,8.13757289,258.39,258.3,8.13757289]
[1732350744284,8.13757289,258.37,258.28,320.13757289]
[1732350747171,8.13757289,258.37,258.28,8.13757289]
[1732350749981,6.1174,258.44,258.32,8.13757289]
[1732350750200,8.13757289,258.41,258.32,320.13757289]
[1732350750577,8.13757289,258.39,258.32,312.0]
[1732350750889,5.21290673,258.38,258.32,312.0]
[1732350751274,6.1174,258.44,258.32,312.0]
[1732350751474,5.21290673,258.39,258.32,312.0]
[1732350751769,5.21290673,258.43,258.34,5.21290673]
[1732350752585,6.1017,258.59,258.42,5.21290673]
[1732350752793,5.21290673,258.52,258.42,5.21290673]
[1732350753001,5.21290673,258.48,258.36,20.0]
[1732350753301,5.21290673,258.48,258.35,25.89859173]
[1732350753302,5.21290673,258.48,258.38,5.21290673]
[1732350753865,5.21290673,258.48,258.39,23.776884]
[1732350754787,8.13994496,258.47,258.39,23.776884]
[1732350758166,8.13994496,258.47,258.38,8.13994496]
[1732350760580,8.13994496,258.47,258.4,8.13994496]
[1732350760785,8.13994496,258.49,258.4,8.13994496]
[1732350761873,8.13994496,258.47,258.38,8.13994496]
[1732350762072,8.13994496,258.45,258.38,8.13994496]
[1732350763094,8.13994496,258.47,258.38,8.13994496]
[1732350763395,14.46554496,258.49,258.42,8.13994496]
[1732350764888,14.46554496,258.49,258.4,8.13994496]
[1732350765083,8.13994496,258.45,258.38,8.13994496]
[1732350766014,8.13994496,258.47,258.38,8.13994496]
[1732350766881,8.13994496,258.47,258.4,8.13994496]
[1732350767096,8.13994496,258.49,258.4,8.13994496]
[1732350767776,8.13994496,258.47,258.38,8.13994496]
[1732350767976,215.403819,258.5,258.36,5.09443227]
[1732350767977,8.13994496,258.49,258.4,8.13994496]
[1732350768679,8.13994496,258.47,258.38,8.13994496]
[1732350769906,8.13994496,258.45,258.38,8.13994496]
[1732350770899,8.13994496,258.43,258.34,8.13994496]
[1732350771090,8.13994496,258.45,258.36,8.13994496]
[1732350771411,8.13994496,258.43,258.36,8.13994496]
[1732350771697,8.13994496,258.41,258.34,8.13994496]
[1732350774100,8.13994496,258.41,258.32,8.13994496]
[1732350774502,8.13994496,258.39,258.3,8.13994496]
[1732350774679,5.21304521,258.38,258.29,21.06034521]
[1732350774875,5.21304521,258.38,258.31,5.21304521]
[1732350775506,5.21304521,258.38,258.29,15.8473]
[1732350775682,5.21304521,258.38,258.3,5.21304521]
[1732350775885,5.21304521,258.4,258.32,5.21304521]
[1732350776085,5.21304521,258.4,258.29,15.8473]
[1732350776305,5.21304521,258.4,258.31,5.21304521]
[1732350776511,11.5413,258.49,258.29,15.8473]
[1732350776512,5.21304521,258.38,258.29,15.8473]
[1732350777005,5.21304521,258.36,258.27,5.21304521]
[1732350777714,5.21304521,258.32,258.23,21.06034521]
[1732350779383,5.21304521,258.32,258.23,15.8473]
[1732350779596,5.21304521,258.32,258.24,5.21304521]
[1732350780496,5.21304521,258.34,258.24,5.21304521]
[1732350780890,5.21304521,258.34,258.26,5.21304521]
[1732350781101,5.21304521,258.32,258.24,5.21304521]
[1732350782309,5.21304521,258.32,258.25,5.21304521]
[1732350783003,5.21304521,258.32,258.23,15.8473]
[1732350783207,5.21304521,258.32,258.24,5.21304521]
[1732350783390,43.776884,258.41,258.26,5.21304521]
[1732350783911,5.21304521,258.37,258.28,5.21304521]
[1732350784420,23.776884,258.41,258.28,5.21304521]
[1732350784609,23.776884,258.41,258.23,15.8473]
[1732350784610,5.21304521,258.38,258.3,5.21304521]
[1732350784786,5.21304521,258.38,258.28,5.21304521]
[1732350784989,5.21304521,258.36,258.28,5.21304521]
[1732350785209,4.9982,258.42,258.23,15.8473]
[1732350785417,5.21304521,258.34,258.25,5.21304521]
[1732350786215,5.21304521,258.3,258.22,5.21304521]
[1732350787005,5.21304521,258.32,258.22,5.21304521]
[1732350787208,5.21304521,258.3,258.22,5.21304521]
[1732350787509,23.776884,258.39,258.22,5.21304521]
[1732350787700,5.21304521,258.3,258.22,5.21304521]
[1732350789298,23.776884,258.37,258.22,5.21304521]
[1732350789615,5.21304521,258.3,258.22,5.21304521]
[1732350790117,23.776884,258.37,258.17,15.016]
[1732350790118,5.21304521,258.26,258.18,5.21304521]
[1732350790316,5.21304521,258.24,258.17,15.016]
[1732350791829,5.21304521,258.26,258.18,5.21304521]
[1732350792512,5.21304521,258.26,258.17,15.016]
[1732350792513,5.21304521,258.24,258.17,20.22904521]
[1732350793105,5.21304521,258.25,258.17,20.22904521]
[1732350793620,5.21304521,258.24,258.17,5.21304521]
[1732350794309,5.21304521,258.22,258.15,5.21304521]
[1732350794518,1.26874521,258.22,258.15,5.21304521]
[1732350794825,4.74964521,258.25,258.18,5.21304521]
[1732350795401,5.21304521,258.24,258.17,5.21304521]
[1732350796720,4.9982,258.32,258.18,5.21304521]
[1732350796910,4.7008335,258.26,258.19,28.98992921]
[1732350797410,5.21304521,258.27,258.19,28.98992921]
[1732350797924,3.31044521,258.27,258.19,28.98992921]
[1732350798139,5.21304521,258.26,258.19,23.776884]
[1732350798422,5.21304521,258.25,258.19,23.776884]
[1732350798928,5.21304521,258.26,258.19,23.776884]
[1732350799414,5.21304521,258.23,258.19,23.776884]
[1732350799720,5.21304521,258.21,258.12,5.21304521]
[1732350800700,5.21304521,258.19,258.12,5.21304521]
[1732350800917,5.21304521,258.17,258.11,15.016]
[1732350801102,20.85218084,258.31,258.06,5.21304521]
[1732350801103,5.21304521,258.15,258.06,5.21304521]
[1732350801505,5.21304521,258.13,258.05,16.2893]
[1732350801702,4.9982,258.22,258.05,16.2893]
[1732350801703,5.21304521,258.11,258.05,16.2893]
[1732350801917,5.21304521,258.11,257.92,20.85218084]
[1732350801918,5.21304521,258.09,258.01,5.21304521]
[1732350802317,20.85218084,258.18,257.99,16.2893]
[1732350802534,20.85218084,258.18,258.0,5.21304521]
[1732350802535,5.21304521,258.1,258.0,5.21304521]
[1732350803012,5.21304521,258.1,258.02,5.21304521]
[1732350803329,5.21304521,258.12,257.99,16.2893]
[1732350803506,5.21304521,258.12,258.06,23.776884]
[1732350803826,4.9982,258.22,258.07,5.21304521]
[1732350803827,5.21304521,258.16,258.07,5.21304521]
[1732350804413,5.21304521,258.1,258.06,23.776884]
[1732350804622,5.21304521,258.1,258.08,23.776884]
[1732350804804,5.21304521,258.1,258.02,5.21304521]
[1732350805005,2.5,258.17,258.02,5.21304521]
[1732350805212,5.21304521,258.1,258.02,5.21304521]
[1732350805914,5.21304521,258.13,258.05,23.776884]
[1732350806135,5.21304521,258.13,258.07,23.776884]
[1732350806427,5.21304521,258.15,258.07,23.776884]
[1732350807131,5.21304521,258.13,258.07,23.776884]
[1732350807507,5.21304521,258.11,258.07,23.776884]
[1732350809407,4.9982,258.22,258.1,5.21304521]
[1732350809613,5.21304521,258.19,258.1,5.21304521]
[1732350810432,4.9982,258.22,258.12,5.21304521]
[1732350810608,5.21304521,258.22,258.12,5.21304521]
[1732350810815,5.21304521,258.22,258.14,5.21304521]
[1732350811016,5.21304521,258.24,258.16,5.21304521]
[1732350811511,5.21304521,258.26,258.16,5.21304521]
[1732350811715,6.6097,258.29,258.2,5.21304521]
[1732350812017,5.21304521,258.33,258.24,5.21304521]
[1732350812816,4.9982,258.4,258.28,5.21304521]
[1732350813020,5.21304521,258.37,258.28,5.21304521]
[1732350813938,4.9982,258.4,258.29,23.776884]
[1732350814113,5.21304521,258.37,258.29,23.776884]
[1732350814314,5.21304521,258.35,258.29,23.776884]
[1732350814615,8.15056588,258.31,258.27,1.00888596]
[1732350815122,8.15056588,258.29,258.27,1.00888596]
[1732350816028,10.65056588,258.29,258.27,1.00888596]
[1732350816416,2.5,258.28,258.27,1.00888596]
[1732350816611,2.5,258.28,258.09,16.3711]
[1732350816612,2.5,258.26,258.1,8.15056588]
[1732350816941,8.15056588,258.17,258.1,8.15056588]
[1732350817843,8.15056588,258.17,258.09,16.3711]
[1732350817844,8.15056588,258.23,258.14,8.15056588]
[1732350818419,8.15056588,258.21,258.09,16.3711]
[1732350818625,8.15056588,258.17,258.01,16.3711]
[1732350818829,8.15056588,258.14,258.05,8.15056588]
[1732350820027,8.15056588,258.14,258.06,23.776884]
[1732350827345,8.15056588,258.1,258.02,23.776884]
[1732350828827,8.9973,258.18,258.02,23.776884]
[1732350829143,20.0,258.17,258.05,8.15056588]
[1732350829446,8.15056588,258.14,258.05,8.15056588]
[1732350832018,8.15056588,258.16,258.07,8.15056588]
[1732350832245,8.15056588,258.14,258.02,335.776884]
[1732350832540,8.15056588,258.14,258.04,8.15056588]
[1732350833220,8.15056588,258.14,258.05,23.776884]
[1732350833425,8.15056588,258.12,258.02,8.15056588]
[1732350833614,8.15056588,258.1,258.03,23.776884]
[1732350837945,8.15056588,258.1,258.02,23.776884]
[1732350838134,20.0,258.17,258.02,23.776884]
[1732350838322,8.15056588,258.1,258.02,23.776884]
[1732350838741,5.22475596,258.1,258.02,23.776884]
[1732350839544,5.22475596,258.08,258.02,23.776884]
[1732350841143,20.0,258.17,257.92,20.89902384]
[1732350841144,5.22475596,258.06,257.92,15.4115]
[1732350841352,5.22475596,257.98,257.92,15.4115]
[1732350841849,5.22475596,258.0,257.92,15.4115]
[1732350842026,20.0,258.04,257.94,5.22475596]
[1732350842346,5.22475596,258.04,257.94,5.22475596]
[1732350842543,5.22475596,258.04,257.96,5.22475596]
[1732350842765,8.16676329,258.05,257.96,8.16676329]
[1732350842926,8.16676329,258.07,257.98,8.16676329]
[1732350843421,8.16676329,258.07,257.99,23.776884]
[1732350844447,6.3341,258.16,257.99,23.776884]
[1732350844629,6.3341,258.16,258.0,8.16676329]
[1732350844825,6.3341,258.16,258.01,23.776884]
[1732350845050,8.16676329,258.09,258.01,23.776884]
[1732350845650,8.16676329,258.09,258.01,335.776884]
[1732350849431,8.16676329,258.07,258.01,23.776884]
[1732350849637,8.16676329,258.07,257.98,8.16676329]
[1732350849831,8.16676329,258.05,257.96,8.16676329]
[1732350850356,8.16676329,258.03,257.94,8.16676329]
[1732350851044,2.5,258.14,257.97,23.776884]
[1732350851234,8.16676329,258.06,257.97,23.776884]
[1732350852435,8.16676329,258.06,257.98,8.16676329]
[1732350852754,8.16676329,258.1,258.01,23.776884]
[1732350852952,8.16676329,258.08,258.01,23.776884]
[1732350853833,8.16676329,258.1,258.01,23.776884]
[1732350854542,8.16676329,258.08,258.01,23.776884]
[1732350854856,8.16676329,258.06,258.01,23.776884]
[1732350855031,8.16676329,258.06,257.96,8.16676329]
[1732350856239,8.16676329,258.06,257.97,23.776884]
[1732350856935,8.16676329,258.06,257.98,8.16676329]
[1732350857266,8.8341,258.16,257.94,8.16676329]
[1732350857267,8.16676329,258.02,257.94,8.16676329]
[1732350857431,8.16676329,258.02,257.92,15.4115]
[1732350857432,8.16676329,258.02,257.92,23.57826329]
[1732350857636,8.16676329,258.0,257.92,23.57826329]
[1732350858444,8.16676329,258.0,257.92,15.4115]
[1732350858757,8.16676329,257.98,257.92,15.4115]
[1732350859360,8.16676329,257.98,257.9,12.52884911]
[1732350859361,8.16676329,257.98,257.9,4.36208582]
[1732350859865,8.16676329,257.98,257.9,12.52884911]
[1732350860174,8.16676329,257.92,257.84,8.16676329]
[1732350860459,8.16676329,257.9,257.82,8.16676329]
[1732350862787,8.16676329,257.9,257.81,8.72136809]
[1732350863049,8.16676329,257.88,257.81,4.36208582]
[1732350863243,8.16676329,257.86,257.8,16.341]
[1732350866460,8.16676329,257.86,257.76,8.16676329]
[1732350866968,8.16676329,257.84,257.76,8.16676329]
[1732350868356,8.16676329,257.84,257.74,24.50776329]
[1732350868966,8.16676329,257.84,257.76,8.16676329]
[1732350871054,16.33352729,257.9,257.82,8.16676329]
[1732350871257,8.16676329,257.92,257.82,8.16676329]
[1732350871479,8.16676329,257.92,257.83,4.36208582]
[1732350872271,8.16676329,257.92,257.84,8.16676329]
[1732350874663,8.16676329,257.92,257.83,4.36208582]
[1732350875066,8.16676329,257.92,257.83,3.86208582]
[1732350875273,8.16676329,257.92,257.82,8.16676329]
[1732350879989,8.16676329,257.92,257.84,8.16676329]
[1732350880787,6.485,257.94,257.84,8.16676329]
[1732350880788,5.23169439,257.93,257.84,5.23169439]
[1732350880976,5.23169439,257.93,257.84,317.23169439]
[1732350882980,5.23169439,257.93,257.84,5.23169439]
[1732350883771,5.23169439,257.91,257.82,5.23169439]
[1732350884371,5.23169439,257.92,257.84,5.23169439]
[1732350886080,5.23169439,257.92,257.84,317.23169439]
[1732350887392,5.23169439,257.92,257.84,5.23169439]
[1732350890196,20.0,257.95,257.84,5.23169439]
[1732350890379,8.166764,257.96,257.84,5.23169439]
[1732350890380,5.23169439,257.94,257.84,9.59097666]
[1732350890977,5.23169439,257.94,257.86,5.23169439]
[1732350892811,5.23169439,257.94,257.85,9.59097666]
[1732350892987,5.23169439,257.94,257.86,23.776884]
[1732350895795,2.5,258.07,257.91,5.23169439]
[1732350895796,20.0,258.07,257.91,5.23169439]
[1732350895985,5.23169439,258.0,257.91,5.23169439]
[1732350896191,5.23169439,258.0,257.92,4.61928227]
[1732350897304,5.23169439,257.98,257.92,4.61928227]
[1732350897505,5.23169439,257.96,257.87,20.04077471]
[1732350897886,5.23169439,257.94,257.87,15.7148]
[1732350898400,5.23169439,257.92,257.85,4.61928227]
[1732350900281,5.23169439,257.94,257.85,9.85097666]
[1732350900499,5.23169439,257.94,257.85,14.17695137]
[1732350900702,5.23169439,257.92,257.85,8.94525698]
[1732350901289,5.23169439,257.92,257.85,4.61928227]
[1732350902202,5.23169439,257.89,257.85,4.61928227]
[1732350904106,20.0,257.97,257.85,4.61928227]
[1732350904303,5.23169439,257.91,257.85,4.61928227]
[1732350904494,5.23169439,257.91,257.85,8.94525698]
[1732350904890,5.23169439,257.86,257.85,8.94525698]
[1732350905109,5.23169439,257.86,257.8,15.7148]
[1732350905512,5.23169439,257.88,257.81,4.61928227]
[1732350905809,5.23169439,257.84,257.81,4.61928227]
[1732350907105,5.23169439,257.84,257.75,5.23169439]
[1732350907106,5.23169439,257.82,257.74,20.41587471]
[1732350907285,6.2941,257.89,257.74,20.41587471]
[1732350907286,5.23169439,257.79,257.74,20.41587471]
[1732350908397,5.23169439,257.79,257.74,4.32597471]
[1732350908714,5.23169439,257.77,257.74,4.32597471]
[1732350909205,20.0,257.74,257.63,4.32597471]
[1732350909401,5.23169439,257.68,257.63,4.32597471]
[1732350909997,5.23169439,257.66,257.63,4.32597471]
[1732350910205,5.23169439,257.64,257.62,4.61928227]
[1732350910724,8.19404247,257.63,257.57,4.61928227]
[1732350911016,8.19404247,257.61,257.57,4.61928227]
[1732350911222,20.0,257.74,257.57,4.61928227]
[1732350911223,8.19404247,257.59,257.57,4.61928227]
[1732350911418,8.19404247,257.59,257.5,16.0899]
[1732350911591,8.19404247,257.54,257.5,16.0899]
[1732350912087,6.2941,257.64,257.5,20.70918227]
[1732350912088,8.19404247,257.56,257.5,20.70918227]
[1732350912301,20.0,257.69,257.55,8.19404247]
[1732350912511,8.19404247,257.65,257.57,8.19404247]
[1732350912713,8.19404247,257.69,257.61,8.19404247]
[1732350912908,8.19404247,257.69,257.62,8.94525698]
[1732350913505,8.19404247,257.78,257.67,8.19404247]
[1732350913707,8.19404247,257.78,257.7,8.19404247]
[1732350914218,8.19404247,257.78,257.68,12.81332474]
[1732350914517,8.19404247,257.78,257.7,8.19404247]
[1732350914693,8.19404247,257.8,257.72,8.19404247]
[1732350914897,8.19404247,257.76,257.68,4.61928227]
[1732350915205,8.19404247,257.76,257.69,23.776884]
[1732350915717,8.19404247,257.74,257.68,23.776884]
[1732350916195,8.19404247,257.72,257.64,22.1835]
[1732350916400,8.19404247,257.68,257.58,8.19404247]
[1732350916921,8.19404247,257.64,257.57,6.0936]
[1732350917091,8.19404247,257.68,257.6,8.19404247]
[1732350917599,8.19404247,257.66,257.58,8.19404247]
[1732350917797,8.19404247,257.68,257.6,8.19404247]
[1732350917999,8.19404247,257.73,257.64,8.19404247]
[1732350918215,8.19404247,257.75,257.66,8.19404247]
[1732350919203,2.5,257.86,257.64,8.19404247]
[1732350919204,8.19404247,257.73,257.64,8.19404247]
[1732350920703,2.5,257.89,257.66,8.19404247]
[1732350920704,8.19404247,257.75,257.66,8.19404247]
[1732350921020,8.19404247,257.73,257.65,23.776884]
[1732350921504,8.19404247,257.75,257.66,8.19404247]
[1732350923209,8.19404247,257.77,257.68,8.19404247]
[1732350923409,8.19404247,257.79,257.7,8.19404247]
[1732350924328,8.19404247,257.83,257.74,8.19404247]
[1732350924930,8.19404247,257.81,257.71,16.6397]
[1732350925108,6.2941,257.9,257.71,16.6397]
[1732350925109,8.19404247,257.79,257.71,16.6397]
[1732350925502,8.19404247,257.73,257.64,29.15971718]
[1732350925702,8.19404247,257.69,257.64,16.6397]
[1732350926107,8.19404247,257.71,257.64,16.6397]
[1732350927130,8.19404247,257.73,257.65,4.32597471]
[1732350927303,8.19404247,257.73,257.64,16.6397]
[1732350927727,8.19404247,257.73,257.65,8.19404247]
[1732350929317,8.19404247,257.73,257.64,16.6397]
[1732350929833,8.19404247,257.75,257.67,8.19404247]
[1732350930357,8.19404247,257.77,257.67,8.19404247]
[1732350930520,8.19404247,257.79,257.69,8.19404247]
[1732350930716,8.19404247,257.77,257.67,8.19404247]
[1732350930913,8.19404247,257.77,257.64,16.6397]
[1732350930914,8.19404247,257.75,257.65,8.19404247]
[1732350931123,2.5,257.83,257.64,16.6397]
[1732350931124,8.19404247,257.73,257.64,16.6397]
[1732350931827,8.19404247,257.71,257.64,16.6397]
[1732350932023,8.19404247,257.69,257.59,8.19404247]
[1732350932411,8.19404247,257.69,257.58,16.6397]
[1732350932412,8.19404247,257.67,257.58,16.6397]
[1732350933026,8.19404247,257.65,257.58,16.6397]
[1732350933214,23.776884,257.75,257.52,16.6397]
[1732350933215,8.19404247,257.61,257.52,16.6397]
[1732350934026,8.19404247,257.59,257.52,16.6397]
[1732350934616,8.19404247,257.59,257.49,8.19404247]
[1732350934830,8.19404247,257.57,257.49,8.19404247]
[1732350935412,8.19404247,257.55,257.47,8.19404247]
[1732350935613,8.19404247,257.55,257.45,24.83374247]
[1732350935819,8.19404247,257.57,257.47,8.19404247]
[1732350936219,8.19404247,257.61,257.53,8.19404247]
[1732350936518,43.776884,257.62,257.53,8.19404247]
[1732350936718,43.776884,257.62,257.55,8.19404247]
[1732350937632,23.776884,257.62,257.55,8.19404247]
[1732350937860,8.19404247,257.63,257.55,8.19404247]
[1732350938036,8.19404247,257.65,257.55,8.19404247]
[1732350938418,8.19404247,257.63,257.55,8.19404247]
[1732350938735,8.19404247,257.59,257.51,8.19404247]
[1732350939936,6.2187,257.67,257.51,8.19404247]
[1732350939937,23.776884,257.6,257.51,8.19404247]
[1732350940133,23.776884,257.6,257.45,16.6397]
[1732350940322,8.19404247,257.63,257.54,8.19404247]
[1732350940526,23.776884,257.64,257.57,8.19404247]
[1732350940726,8.19404247,257.65,257.57,8.19404247]
[1732350941316,8.19404247,257.67,257.57,8.19404247]
[1732350941521,8.19404247,257.67,257.59,8.19404247]
[1732350942039,8.19404247,257.69,257.59,8.19404247]
[1732350942226,8.19404247,257.69,257.59,23.98424247]
[1732350944043,8.19404247,257.67,257.59,23.98424247]
[1732350945028,23.776884,257.72,257.59,15.7902]
[1732350945029,8.19404247,257.65,257.59,15.7902]
[1732350946642,8.19404247,257.62,257.52,23.98424247]
[1732350946823,8.19404247,257.6,257.52,15.7902]
[1732350947939,8.19404247,257.64,257.54,8.19404247]
[1732350948244,8.19404247,257.66,257.56,8.19404247]
[1732350948717,23.776884,257.72,257.56,8.19404247]
[1732350948718,8.19404247,257.64,257.56,8.19404247]
[1732350949741,8.19404247,257.64,257.54,8.19404247]
[1732350951136,8.19404247,257.66,257.58,8.19404247]
[1732350951533,8.19404247,257.66,257.56,8.19404247]
[1732350952041,8.19404247,257.66,257.58,8.19404247]
[1732350953522,8.19404247,257.66,257.56,8.19404247]
[1732350954946,20.0,257.71,257.56,8.19404247]
[1732350955123,20.0,257.71,257.58,8.19404247]
[1732350955124,8.19404247,257.67,257.58,8.19404247]
[1732350955321,8.19404247,257.71,257.62,8.19404247]
[1732350956329,8.19404247,257.71,257.57,6.1347]
[1732350956330,8.19404247,257.66,257.57,6.1347]
[1732350957143,8.19404247,257.66,257.56,8.19404247]
[1732350957354,5.0,257.75,257.56,8.19404247]
[1732350957355,8.19404247,257.64,257.56,8.19404247]
[1732350957532,8.19404247,257.64,257.54,8.19404247]
[1732350957741,8.19404247,257.62,257.54,8.19404247]